bitfinex/quotes_SOLUSD_20250301
["timestamp","ask_amount","ask_price","bid_price","bid_amount"]
[1740847894475,7.1352,140.15,140.13,0.03]
[1740847895675,12.80721622,140.15,140.13,0.03]
[1740847896246,83.0,140.14,140.13,0.03]
[1740847896664,90.1357,140.14,140.13,0.03]
[1740847899172,7.1357,140.14,140.13,0.03]
[1740847904080,7.1352,140.15,140.13,0.03]
[1740847927306,90.1352,140.15,140.13,0.03]
[1740847928301,83.0,140.15,140.13,0.03]
[1740847929315,83.0,140.15,140.13,1.5694]
[1740847930397,13.8543,140.17,140.13,1.5694]
[1740847930711,7.1343,140.17,140.13,1.5694]
[1740847933098,93.6494093,140.18,140.13,8.7056]
[1740847933598,90.1339,140.18,140.13,8.7056]
[1740847933798,83.0,140.18,140.13,8.7056]
[1740847934303,90.1338,140.18,140.13,1.5694]
[1740847937825,83.0,140.17,140.13,1.5694]
[1740847938623,20.0,140.14,140.13,0.03]
[1740847939101,27.1357,140.14,140.13,0.03]
[1740847939426,20.0,140.14,140.13,0.03]
[1740847939822,7.1354,140.15,140.13,0.03]
[1740847939823,90.1349,140.16,140.13,0.03]
[1740847942529,20.0,140.14,140.13,0.03]
[1740847944436,27.1357,140.14,140.13,0.03]
[1740847947018,30.70855605,140.14,140.13,0.03]
[1740847951436,18.64964886,140.12,140.1,0.03]
[1740847951815,33.07856479,140.12,140.1,0.03]
[1740847952717,7.1372,140.11,140.1,0.03]
[1740847956722,7.1362,140.13,140.1,0.03]
[1740847959244,17.9023,140.14,140.1,0.03]
[1740847959445,25.038,140.14,140.1,0.03]
[1740847960047,7.1987,140.14,140.1,0.03]
[1740847962444,0.063,140.14,140.1,18.67964886]
[1740847963541,0.063,140.14,140.13,1.6375]
[1740847963737,0.063,140.14,140.13,20.28714886]
[1740847964041,83.063,140.19,140.14,18.64964886]
[1740847964241,0.063,140.19,140.16,18.64964886]
[1740847964440,0.063,140.19,140.17,1.6375]
[1740847971151,0.063,140.19,140.18,18.64964886]
[1740847972936,0.063,140.19,140.18,25.78324886]
[1740847974454,0.063,140.19,140.18,18.64964886]
[1740847976025,0.063,140.19,140.17,1.6375]
[1740847981396,0.063,140.19,140.18,18.64964886]
[1740847982490,0.063,140.19,140.18,25.78324886]
[1740847982674,0.063,140.19,140.18,18.64964886]
[1740847983371,0.063,140.19,140.17,1.6375]
[1740847983769,0.063,140.19,140.16,82.3]
[1740847986561,0.063,140.19,140.15,6.2063]
[1740847986766,0.063,140.19,140.14,18.64964886]
[1740847986962,20.0,140.17,140.13,0.03]
[1740847988096,83.0,140.18,140.13,0.03]
[1740847988661,90.1339,140.18,140.13,0.03]
[1740847990089,83.0,140.18,140.13,0.03]
[1740847990274,90.1337,140.18,140.13,0.03]
[1740847991302,20.0,140.18,140.13,0.03]
[1740847991467,0.063,140.19,140.13,0.03]
[1740847992278,0.063,140.19,140.14,18.64964886]
[1740847993398,0.063,140.19,140.16,18.64964886]
[1740847994573,0.063,140.19,140.14,25.78534886]
[1740847994769,0.063,140.19,140.16,20.22124886]
[1740847994995,0.063,140.19,140.16,28.85304886]
[1740847996396,0.063,140.19,140.16,30.85304886]
[1740847996604,0.063,140.19,140.18,18.64964886]
[1740847996813,0.063,140.19,140.18,100.94964886]
[1740847997899,0.063,140.19,140.18,108.08324886]
[1740847998788,0.063,140.19,140.18,114.78324886]
[1740848009204,0.063,140.19,140.18,116.78324886]
[1740848014615,0.063,140.19,140.18,114.78324886]
[1740848014784,0.063,140.19,140.18,107.64964886]
[1740848014977,0.063,140.19,140.18,82.3]
[1740848015609,0.063,140.19,140.14,82.3]
[1740848016082,0.063,140.19,140.15,18.64964886]
[1740848017206,0.063,140.19,140.13,146.126]
[1740848017509,90.1961,140.19,140.13,138.99]
[1740848017685,90.1961,140.19,140.13,146.1262]
[1740848025408,83.063,140.19,140.14,18.64964886]
[1740848025781,90.1962,140.19,140.14,18.64964886]
[1740848026797,90.1962,140.19,140.13,138.99]
[1740848026992,7.1962,140.19,140.13,138.99]
[1740848027511,7.1962,140.19,140.13,13.866]
[1740848035999,7.1962,140.19,140.13,6.73]
[1740848036399,7.1962,140.19,140.13,0.03]
[1740848036400,1.5702,140.18,140.13,0.03]
[1740848037133,7.1341,140.17,140.13,0.03]
[1740848037935,0.063,140.19,140.13,100.97964886]
[1740848038135,0.063,140.19,140.14,8.7]
[1740848038303,0.063,140.19,140.17,18.64964886]
[1740848038614,0.063,140.19,140.18,4.0]
[1740848039003,0.063,140.25,140.22,20.0]
[1740848039315,0.063,140.25,140.23,18.64964886]
[1740848039516,0.063,140.25,140.23,104.94964886]
[1740848039715,0.063,140.25,140.24,20.64964886]
[1740848040018,0.063,140.25,140.24,18.64964886]
[1740848041220,0.063,140.25,140.24,27.78024886]
[1740848041400,0.063,140.25,140.24,29.78024886]
[1740848041709,0.063,140.29,140.28,22.0]
[1740848041915,0.063,140.29,140.28,267.44964886]
[1740848043006,0.063,140.29,140.28,274.57814886]
[1740848043829,0.0001,140.29,140.28,274.57814886]
[1740848044329,0.063,140.3,140.29,22.64964886]
[1740848044330,0.0001,140.3,140.29,22.64964886]
[1740848044530,0.0001,140.3,140.29,24.14552344]
[1740848045328,0.0001,140.3,140.29,163.51352344]
[1740848045509,0.063,140.34,140.33,18.64964886]
[1740848045711,0.063,140.34,140.33,107.64964886]
[1740848045910,0.063,140.34,140.33,113.14546811]
[1740848046111,0.0001,140.34,140.33,248.94546811]
[1740848046421,0.063,140.39,140.38,20.64964886]
[1740848046618,0.063,140.41,140.4,20.64964886]
[1740848046802,0.063,140.46,140.41,2.0]
[1740848047001,0.063,140.46,140.42,18.64964886]
[1740848047329,0.063,140.46,140.44,18.64964886]
[1740848048003,20.063,140.46,140.41,142.9216]
[1740848048198,20.063,140.46,140.39,7.123]
[1740848048622,20.063,140.46,140.4,18.64964886]
[1740848048803,0.063,140.46,140.38,7.04]
[1740848049012,0.063,140.46,140.38,14.1634]
[1740848049327,20.063,140.46,140.39,18.64964886]
[1740848050507,27.1829,140.46,140.39,18.64964886]
[1740848052325,27.1829,140.46,140.38,7.04]
[1740848052510,83.0,140.45,140.38,14.1634]
[1740848053118,83.0,140.45,140.39,18.64964886]
[1740848054439,83.0,140.45,140.4,7.1225]
[1740848056513,0.063,140.46,140.41,18.64964886]
[1740848056705,0.063,140.46,140.41,100.94964886]
[1740848057210,0.063,140.46,140.41,102.94964886]
[1740848057410,0.063,140.46,140.43,18.64964886]
[1740848057619,0.063,140.46,140.45,18.64964886]
[1740848057925,0.063,140.46,140.45,102.94964886]
[1740848058730,0.063,140.46,140.45,110.06954886]
[1740848060029,83.0,140.53,140.45,110.06954886]
[1740848060235,90.116,140.53,140.45,110.06954886]
[1740848060442,90.116,140.53,140.45,108.06954886]
[1740848060735,83.0,140.53,140.45,108.06954886]
[1740848061119,83.0,140.53,140.45,125.86944886]
[1740848061323,90.1159,140.53,140.45,125.86944886]
[1740848061520,83.0,140.53,140.45,125.86944886]
[1740848061732,83.0,140.53,140.45,127.86944886]
[1740848062034,83.0,140.53,140.45,125.86944886]
[1740848062708,83.0,140.53,140.45,127.86944886]
[1740848063535,0.063,140.54,140.47,18.64964886]
[1740848063836,0.063,140.54,140.49,18.64964886]
[1740848064039,0.063,140.54,140.49,100.94964886]
[1740848064231,0.063,140.54,140.5,7.1174]
[1740848065135,0.063,140.54,140.51,18.64964886]
[1740848065334,0.03,140.53,140.51,18.64964886]
[1740848065627,0.03,140.53,140.51,100.94964886]
[1740848066442,0.03,140.53,140.52,25.76604886]
[1740848066647,0.03,140.53,140.51,82.3]
[1740848066947,0.03,140.53,140.51,89.4168]
[1740848067121,0.03,140.53,140.51,82.3]
[1740848068948,0.063,140.54,140.51,82.3]
[1740848071227,0.063,140.54,140.48,18.64964886]
[1740848071523,0.063,140.54,140.47,89.58]
[1740848072238,89.6653,140.53,140.46,132.02]
[1740848072444,83.0,140.52,140.46,132.02]
[1740848073144,83.0,140.52,140.45,89.4196]
[1740848074131,7.1169,140.51,140.45,89.4196]
[1740848074631,83.0,140.52,140.45,89.4196]
[1740848074832,90.1166,140.52,140.45,89.4196]
[1740848075033,83.0,140.52,140.46,18.64964886]
[1740848075343,0.063,140.54,140.46,102.94964886]
[1740848076148,0.063,140.54,140.47,26.9162]
[1740848076726,0.063,140.54,140.48,7.28]
[1740848077033,0.063,140.54,140.5,18.64964886]
[1740848077234,0.063,140.54,140.5,100.94964886]
[1740848078241,0.063,140.54,140.5,108.06674886]
[1740848080447,0.063,140.54,140.49,7.1177]
[1740848081853,83.0,140.56,140.49,7.1177]
[1740848082146,83.0,140.56,140.49,24.9125]
[1740848082662,83.0,140.56,140.5,18.64964886]
[1740848083747,83.0,140.56,140.51,7.1169]
[1740848084946,0.063,140.57,140.52,18.64964886]
[1740848085741,0.063,140.57,140.53,7.1159]
[1740848087853,0.063,140.57,140.54,18.64964886]
[1740848089255,0.063,140.57,140.53,24.9056]
[1740848089445,0.063,140.57,140.53,7.1159]
[1740848089647,0.063,140.57,140.53,0.063]
[1740848091446,97.333,140.59,140.53,0.063]
[1740848093659,115.1152,140.59,140.53,0.063]
[1740848095260,83.0,140.58,140.53,0.063]
[1740848095656,7.1138,140.57,140.53,0.063]
[1740848101355,7.1438,140.57,140.53,0.063]
[1740848101562,24.9285,140.57,140.53,0.063]
[1740848101761,83.0,140.56,140.53,0.063]
[1740848103282,1.5764,140.54,140.53,0.063]
[1740848103454,35.8518,140.54,140.53,0.063]
[1740848105256,53.6403,140.54,140.46,0.063]
[1740848105460,83.0,140.53,140.46,0.063]
[1740848105660,83.0,140.52,140.46,0.063]
[1740848105872,83.0,140.51,140.46,0.063]
[1740848106061,83.0,140.5,140.46,0.063]
[1740848107469,7.1179,140.49,140.46,0.063]
[1740848107675,83.0,140.48,140.46,0.063]
[1740848107870,83.0,140.47,140.46,0.063]
[1740848108072,24.9127,140.49,140.46,0.063]
[1740848108277,20.0,140.47,140.46,0.063]
[1740848108479,21.5764,140.47,140.46,0.063]
[1740848108672,20.0,140.47,140.46,0.063]
[1740848109775,27.1189,140.47,140.46,0.063]
[1740848113984,50.9693,140.47,140.4,0.063]
[1740848115370,56.74569296,140.47,140.4,0.063]
[1740848117082,20.0,140.43,140.4,0.063]
[1740848117274,83.0,140.42,140.4,0.063]
[1740848118200,7.1219,140.41,140.4,0.063]
[1740848119491,83.0,140.42,140.4,0.063]
[1740848119693,20.0,140.43,140.4,0.063]
[1740848119900,83.0,140.46,140.4,1.58]
[1740848120209,83.0,140.46,140.41,6.5091]
[1740848121903,83.0,140.46,140.42,7.1214]
[1740848122397,90.1195,140.46,140.4,8.7024]
[1740848122791,83.0,140.46,140.4,8.7024]
[1740848122999,90.1195,140.46,140.4,8.7024]
[1740848123908,90.1195,140.46,140.4,1.58]
[1740848124078,90.1195,140.46,140.4,0.063]
[1740848124708,83.0,140.45,140.4,7.1854]
[1740848126208,83.0,140.45,140.4,0.063]
[1740848128024,0.03,140.47,140.41,24.9268]
[1740848132532,0.03,140.47,140.42,20.29044886]
[1740848132714,0.03,140.47,140.43,7.1209]
[1740848132914,0.03,140.47,140.44,24.70024886]
[1740848133297,83.0,140.54,140.47,1.6408]
[1740848133507,0.03,140.57,140.5,18.64964886]
[1740848133708,83.03,140.57,140.5,18.64964886]
[1740848134340,0.03,140.57,140.52,18.64964886]
[1740848134838,0.03,140.57,140.53,7.1159]
[1740848135279,0.03,140.57,140.52,100.94964886]
[1740848135428,0.03,140.57,140.52,108.06584886]
[1740848135600,0.03,140.57,140.52,100.94964886]
[1740848135800,0.03,140.57,140.52,108.06594886]
[1740848136034,0.03,140.57,140.52,100.94964886]
[1740848136905,0.03,140.57,140.52,110.06584886]
[1740848137128,0.03,140.57,140.54,18.64964886]
[1740848139052,0.03,140.57,140.54,25.76494886]
[1740848139347,0.03,140.57,140.54,27.76494886]
[1740848140058,0.03,140.57,140.54,245.86494886]
[1740848141335,0.03,140.57,140.56,21.6245]
[1740848141530,0.03,140.57,140.56,103.9245]
[1740848141734,0.063,140.61,140.57,20.64964886]
[1740848142050,0.063,140.62,140.61,18.64964886]
[1740848142251,0.063,140.62,140.61,246.36964886]
[1740848142458,0.063,140.62,140.61,248.36964886]
[1740848142624,0.063,140.62,140.61,246.36964886]
[1740848142821,0.063,140.63,140.62,22.64964886]
[1740848143047,0.063,140.63,140.62,29.76094886]
[1740848143361,0.063,140.63,140.62,25.76094886]
[1740848143563,0.03,140.71,140.62,25.76094886]
[1740848143564,83.03,140.71,140.63,18.64964886]
[1740848143861,83.03,140.71,140.63,100.94964886]
[1740848145123,83.03,140.71,140.65,18.64964886]
[1740848145434,90.137,140.71,140.63,89.4106]
[1740848145658,90.137,140.71,140.63,82.3]
[1740848145840,90.137,140.71,140.64,18.64964886]
[1740848146158,90.137,140.71,140.63,89.4108]
[1740848146353,90.137,140.71,140.63,89.4107]
[1740848146766,90.137,140.71,140.64,18.64964886]
[1740848147134,90.137,140.71,140.65,7.1098]
[1740848147437,0.03,140.71,140.7,20.0]
[1740848147836,0.03,140.71,140.7,38.64964886]
[1740848149160,0.03,140.71,140.7,45.75694886]
[1740848152550,0.03,140.71,140.7,44.61391726]
[1740848153367,0.03,140.72,140.71,24.68704886]
[1740848153571,0.03,140.74,140.72,18.64964886]
[1740848154585,0.03,140.74,140.72,20.64964886]
[1740848154795,83.0,140.85,140.73,26.78964886]
[1740848154965,83.0,140.85,140.74,18.64964886]
[1740848155291,83.0,140.85,140.73,28.78964886]
[1740848155447,7.1002,140.84,140.74,25.75494886]
[1740848156061,24.8508,140.84,140.73,8.14]
[1740848156275,20.0,140.81,140.73,8.14]
[1740848156476,83.0,140.83,140.73,8.14]
[1740848157351,24.8543,140.82,140.73,8.14]
[1740848158269,83.0,140.81,140.73,8.14]
[1740848158470,83.0,140.81,140.71,14.7808]
[1740848158677,83.0,140.81,140.71,7.6743]
[1740848159077,83.0,140.81,140.71,14.781]
[1740848159274,24.8578,140.8,140.71,14.781]
[1740848160073,24.8578,140.8,140.71,7.6743]
[1740848160656,83.0,140.79,140.69,82.3]
[1740848160852,83.0,140.78,140.69,82.3]
[1740848161067,83.0,140.77,140.68,139.8673]
[1740848161355,24.8649,140.76,140.68,139.8673]
[1740848161559,93.16,140.75,140.64,105.5975]
[1740848161759,84.5115,140.74,140.64,105.5975]
[1740848162061,20.0,140.7,140.64,14.6418]
[1740848162272,83.0,140.72,140.63,7.1736]
[1740848162862,20.0,140.69,140.63,7.1736]
[1740848163060,83.0,140.68,140.63,0.063]
[1740848163473,90.1088,140.67,140.63,0.063]
[1740848163674,83.0,140.66,140.63,0.063]
[1740848164679,83.0,140.65,140.63,0.063]
[1740848164878,83.0,140.64,140.63,0.063]
[1740848165079,20.0,140.64,140.63,0.063]
[1740848165473,27.1103,140.64,140.63,0.063]
[1740848166585,45.75994886,140.64,140.63,0.063]
[1740848166770,47.75994886,140.64,140.63,0.063]
[1740848167081,20.64964886,140.63,140.53,14.7918]
[1740848167473,55.0661,140.64,140.53,14.7918]
[1740848169173,9.1113,140.62,140.53,14.7918]
[1740848169378,9.1113,140.62,140.53,7.1157]
[1740848169581,26.8897,140.62,140.53,7.1157]
[1740848169772,7.1113,140.62,140.52,138.8962]
[1740848169978,7.1113,140.62,140.53,18.64964886]
[1740848170200,83.0,140.62,140.53,100.94964886]
[1740848170900,83.0,140.62,140.56,20.0]
[1740848171299,83.0,140.62,140.57,7.1138]
[1740848171467,83.0,140.66,140.59,18.64964886]
[1740848171982,98.288,140.69,140.59,100.94964886]
[1740848172305,83.0,140.68,140.59,100.94964886]
[1740848172599,83.0,140.68,140.63,18.64964886]
[1740848172967,83.0,140.72,140.63,18.64964886]
[1740848173166,83.0,140.74,140.63,100.94964886]
[1740848173380,7.1059,140.73,140.64,7.1103]
[1740848174593,7.1059,140.73,140.64,24.8861]
[1740848175588,43.52004886,140.73,140.63,89.4106]
[1740848175886,43.52004886,140.73,140.62,15.2912]
[1740848175887,83.0,140.72,140.62,15.2912]
[1740848176074,20.0,140.69,140.62,15.2912]
[1740848176274,83.0,140.68,140.62,15.2912]
[1740848176603,83.0,140.68,140.62,7.1112]
[1740848176908,83.0,140.68,140.61,7.1118]
[1740848177095,83.0,140.67,140.6,7.1121]
[1740848177297,83.0,140.67,140.58,14.7891]
[1740848177495,83.0,140.66,140.58,14.7891]
[1740848177707,7.1098,140.65,140.58,14.7891]
[1740848178093,83.0,140.64,140.58,14.7891]
[1740848179009,90.1103,140.64,140.58,14.7891]
[1740848179387,83.0,140.64,140.58,14.7891]
[1740848180405,90.1104,140.64,140.57,7.1137]
[1740848180906,90.1104,140.64,140.56,7.1143]
[1740848181810,83.0,140.63,140.56,7.1143]
[1740848182005,83.0,140.62,140.55,13.7641]
[1740848182309,83.0,140.61,140.55,13.7641]
[1740848183297,90.1118,140.61,140.55,13.7641]
[1740848183712,90.1118,140.61,140.56,0.063]
[1740848185409,107.8914,140.61,140.56,0.063]
[1740848185714,90.1118,140.61,140.56,0.063]
[1740848187312,83.0,140.6,140.56,0.063]
[1740848188895,90.1127,140.6,140.56,0.063]
[1740848189216,83.0,140.6,140.56,0.063]
[1740848189998,7.1128,140.59,140.56,0.063]
[1740848190217,90.1128,140.59,140.56,0.063]
[1740848190918,107.895,140.59,140.56,0.063]
[1740848191616,83.0,140.58,140.56,0.063]
[1740848193014,7.1138,140.57,140.56,0.063]
[1740848193520,83.0,140.58,140.56,0.063]
[1740848195125,90.1134,140.58,140.56,0.063]
[1740848196419,83.0,140.58,140.56,0.063]
[1740848197829,83.0,140.57,140.56,0.063]
[1740848198919,90.1138,140.57,140.56,0.063]
[1740848200733,33.76344886,140.57,140.56,0.063]
[1740848201235,51.54814886,140.57,140.53,0.063]
[1740848201531,83.0,140.56,140.53,0.063]
[1740848202908,7.1149,140.55,140.53,0.063]
[1740848203631,83.0,140.54,140.53,0.063]
[1740848203844,7.1149,140.55,140.53,0.063]
[1740848207639,7.1143,140.56,140.53,0.063]
[1740848212137,83.0,140.55,140.53,0.063]
[1740848222741,90.115,140.55,140.53,0.063]
[1740848225352,83.0,140.54,140.53,0.063]
[1740848228752,90.1154,140.54,140.53,0.063]
[1740848232162,83.0,140.54,140.53,0.063]
[1740848235061,0.03,140.56,140.53,1.6695]
[1740848235842,0.03,140.56,140.55,20.0]
[1740848236159,0.03,140.56,140.55,127.50034886]
[1740848236464,0.03,140.63,140.55,127.50034886]
[1740848237066,0.03,140.63,140.57,18.64964886]
[1740848237263,0.03,140.63,140.58,1.5518]
[1740848237469,0.03,140.63,140.59,18.64964886]
[1740848238547,0.03,140.63,140.58,1.5518]
[1740848239258,83.0,140.62,140.58,1.5518]
[1740848240060,83.0,140.61,140.57,7.68]
[1740848240268,83.0,140.61,140.55,6.5507]
[1740848240447,83.0,140.6,140.54,1.5834]
[1740848241463,83.0,140.6,140.54,8.6986]
[1740848241667,83.0,140.6,140.54,27.34824886]
[1740848242064,83.03,140.63,140.57,20.0]
[1740848242247,83.03,140.63,140.58,18.64964886]
[1740848242447,0.03,140.63,140.58,18.64964886]
[1740848242662,0.03,140.63,140.59,6.5013]
[1740848243756,0.03,140.63,140.59,13.6141]
[1740848243971,0.03,140.63,140.58,7.113]
[1740848246167,83.0,140.62,140.56,7.1143]
[1740848249964,90.1113,140.62,140.56,7.1143]
[1740848251450,83.0,140.62,140.56,7.1143]
[1740848253272,90.1114,140.62,140.56,7.1143]
[1740848254570,83.0,140.62,140.56,7.1143]
[1740848255562,83.0,140.62,140.57,18.64964886]
[1740848255765,0.03,140.63,140.57,18.64964886]
[1740848256075,0.03,140.63,140.6,20.0]
[1740848256669,0.03,140.63,140.61,7.1118]
[1740848257677,0.03,140.62,140.61,7.1118]
[1740848257879,0.03,140.62,140.59,7.1128]
[1740848258056,83.03,140.62,140.56,0.063]
[1740848258256,83.0,140.61,140.56,7.1772]
[1740848259654,0.03,140.62,140.57,18.64964886]
[1740848260958,0.03,140.62,140.56,107.2631]
[1740848261163,0.03,140.62,140.59,20.0]
[1740848262378,0.03,140.62,140.59,27.1127]
[1740848264763,0.03,140.62,140.57,7.1138]
[1740848266383,83.03,140.62,140.57,7.1138]
[1740848266684,83.03,140.62,140.56,0.063]
[1740848266876,83.03,140.62,140.56,24.9632]
[1740848268304,83.03,140.62,140.56,7.1773]
[1740848268478,90.1415,140.62,140.56,7.1773]
[1740848268876,83.03,140.62,140.56,7.1773]
[1740848269598,83.03,140.62,140.56,24.9632]
[1740848271689,0.03,140.62,140.56,24.9632]
[1740848271985,0.03,140.62,140.57,18.64964886]
[1740848272287,0.03,140.62,140.58,24.8967]
[1740848272673,0.03,140.62,140.59,18.64964886]
[1740848272869,0.03,140.62,140.59,100.94964886]
[1740848273085,0.03,140.63,140.61,38.64964886]
[1740848273677,0.03,140.63,140.62,20.0]
[1740848273989,0.03,140.63,140.62,38.64964886]
[1740848274286,0.03,140.63,140.62,45.76094886]
[1740848281573,0.03,140.63,140.62,27.1113]
[1740848281778,0.03,140.63,140.58,24.8966]
[1740848283298,0.03,140.63,140.59,18.64964886]
[1740848284274,0.03,140.63,140.62,20.0]
[1740848284475,0.03,140.63,140.62,38.64964886]
[1740848285001,0.03,140.63,140.62,45.76094886]
[1740848285380,0.03,140.68,140.62,149.47104886]
[1740848286578,0.03,140.68,140.64,18.64964886]
[1740848286786,0.03,140.68,140.64,43.53574886]
[1740848287104,0.03,140.68,140.65,7.44]
[1740848288704,0.03,140.68,140.66,7.1093]
[1740848288902,0.03,140.68,140.65,14.5496]
[1740848290207,0.03,140.68,140.66,18.64964886]
[1740848290807,0.03,140.68,140.67,7.1088]
[1740848291099,0.03,140.68,140.67,25.75844886]
[1740848291898,0.03,140.68,140.67,108.05844886]
[1740848292404,0.03,140.68,140.67,115.45844886]
[1740848294910,0.03,140.68,140.67,14.5088]
[1740848298815,0.03,140.71,140.67,32.2808]
[1740848299019,0.03,140.71,140.67,114.5808]
[1740848299416,0.03,140.71,140.7,20.0]
[1740848300014,0.03,140.71,140.7,38.64964886]
[1740848300454,0.03,140.75,140.7,38.64964886]
[1740848300724,0.03,140.75,140.72,24.872]
[1740848301224,0.03,140.75,140.73,18.64964886]
[1740848302831,0.03,140.75,140.74,7.1053]
[1740848303307,0.03,140.75,140.74,89.4053]
[1740848304719,1.23501729,140.8,140.75,18.64964886]
[1740848305324,0.03,140.82,140.81,20.0]
[1740848305724,0.03,140.82,140.81,38.64964886]
[1740848305905,0.03,140.82,140.81,122.94964886]
[1740848306104,0.03,140.82,140.81,120.94964886]
[1740848306902,0.03,140.82,140.81,128.05134886]
[1740848308201,0.0001,140.83,140.82,18.64964886]
[1740848308403,0.0001,140.83,140.82,240.74964886]
[1740848308815,0.0001,140.83,140.82,247.85084886]
[1740848309003,0.0001,140.83,140.82,108.05084886]
[1740848310505,7.1272,140.9,140.82,108.05084886]
[1740848311804,1.5211,140.88,140.8,7.1022]
[1740848312325,8.6198,140.88,140.8,7.1022]
[1740848314832,1.5211,140.88,140.81,18.64964886]
[1740848315041,84.5211,140.88,140.81,18.64964886]
[1740848315626,91.6193,140.88,140.81,18.64964886]
[1740848315823,84.5211,140.88,140.84,20.0]
[1740848316138,83.0,140.88,140.84,20.0]
[1740848316846,83.0,140.88,140.81,18.64964886]
[1740848317014,83.0,140.88,140.83,18.64964886]
[1740848317219,83.0,140.88,140.82,7.1012]
[1740848317637,7.0978,140.89,140.82,7.1012]
[1740848317838,0.03,140.9,140.85,20.0]
[1740848318041,0.03,140.9,140.86,7.58]
[1740848319013,0.03,140.9,140.87,7.0987]
[1740848321554,0.03,140.9,140.86,14.6791]
[1740848321755,83.03,140.9,140.83,7.1007]
[1740848322054,6.3076,140.89,140.83,7.1007]
[1740848324536,13.4054,140.89,140.82,228.641]
[1740848324847,84.6511,140.88,140.82,131.66]
[1740848325246,84.6511,140.88,140.81,0.063]
[1740848325730,84.6511,140.88,140.81,7.1646]
[1740848326450,7.0987,140.87,140.81,0.063]
[1740848328521,7.0987,140.87,140.81,7.1647]
[1740848329220,91.7495,140.88,140.81,7.1647]
[1740848329429,83.03,140.9,140.82,26.20964886]
[1740848330220,90.1272,140.9,140.82,7.56]
[1740848331431,90.1272,140.9,140.83,7.1007]
[1740848332630,83.03,140.9,140.83,24.8525]
[1740848334053,83.03,140.9,140.84,18.64964886]
[1740848334637,83.03,140.9,140.85,7.0997]
[1740848334846,0.03,140.9,140.85,7.0997]
[1740848335839,7.1272,140.9,140.83,82.3]
[1740848336043,7.1272,140.9,140.84,7.1]
[1740848336642,7.1272,140.9,140.7,44.37327392]
[1740848336643,20.0,140.79,140.7,44.37327392]
[1740848336840,2.0,140.8,140.7,44.37327392]
[1740848336841,83.0,140.78,140.7,44.37327392]
[1740848337032,83.0,140.78,140.7,51.48017392]
[1740848337229,83.0,140.78,140.7,44.37327392]
[1740848338353,83.0,140.78,140.68,14.6283]
[1740848338732,90.1033,140.78,140.68,14.6283]
[1740848338933,90.1033,140.78,140.68,7.52]
[1740848340440,27.1048,140.75,140.68,7.52]
[1740848340654,6.5524,140.74,140.68,7.52]
[1740848343150,7.1058,140.73,140.68,7.52]
[1740848343343,7.1058,140.73,140.67,0.063]
[1740848343742,7.1058,140.73,140.68,0.063]